fUSD/lending_fUSD_20241004
["ID","MTS","AMOUNT","RATE_DAILY","PERIOD"]
[339844829,1728058232332,-428.77,0.00035678,2]
[339844830,1728058232341,-300.0,0.00035678,2]
[339844831,1728058232350,-300.0,0.00035678,2]
[339844832,1728058232359,-428.77,0.00035678,2]
[339844833,1728058232368,-428.77,0.00035678,2]
[339844834,1728058232377,-301.21,0.00035678,2]
[339844835,1728058232387,-302.0,0.00035678,2]
[339844836,1728058232395,-428.77,0.00035678,2]
[339844837,1728058232404,-428.77,0.00035678,2]
[339844838,1728058232413,-428.77,0.00035678,2]
[339844839,1728058232422,-428.77,0.00035678,2]
[339844840,1728058232432,-284.28,0.00035764,2]
[339844841,1728058232441,-181.48,0.00035845,2]
[339844842,1728058232450,-170.79,0.00035929,120]
[339844843,1728058232461,-181.75,0.00035994,2]
[339844844,1728058232471,-500.0,0.00036034,120]
[339844845,1728058232480,-6642.2644,0.0003609,2]
[339844846,1728058232489,-1275.723,0.00036092,2]
[339844847,1728058232498,-167.01,0.00036188,2]
[339844848,1728058232507,-225.0,0.00036293,2]
[339844849,1728058232516,-428.77,0.00036297,2]
[339844850,1728058232525,-428.77,0.00036297,2]
[339844851,1728058232534,-428.77,0.00036297,2]
[339844852,1728058232544,-428.77,0.00036297,2]
[339844853,1728058232553,-428.77,0.00036297,2]
[339844854,1728058232563,-693.17,0.00036297,2]
[339844855,1728058232572,-428.65,0.00036297,2]
[339844856,1728058232581,-568.214,0.00036297,44]
[339844857,1728058232591,-157.833,0.00036297,44]
[339844858,1728058232600,-150.74,0.0003643,2]
[339844859,1728058232610,-499.99,0.00036476,2]
[339844860,1728058232620,-150.74,0.00036476,2]
[339844861,1728058232629,-2018.0,0.00036479,111]
[339844862,1728058232639,-428.77,0.000365,2]
[339844863,1728058232648,-150.74,0.00036521,2]
[339844864,1728058232657,-150.74,0.00036567,2]
[339844865,1728058232667,-4000.0,0.00036569,28]
[339844866,1728058232676,-150.74,0.00036612,2]
[339844867,1728058232686,-168.7,0.0003725,2]
[339844868,1728058232696,-150.0,0.00037378,2]
[339844869,1728058232705,-150.0,0.00037378,2]
[339844870,1728058232715,-150.0,0.00037378,2]
[339844871,1728058232725,-428.65,0.00037378,2]
[339844872,1728058232735,-150.0,0.00037378,2]
[339844873,1728058232744,-150.0,0.00037378,2]
[339844874,1728058232754,-150.0,0.00037378,2]
[339844875,1728058232763,-150.0,0.00037378,2]
[339844876,1728058232773,-150.0,0.00037378,2]
[339844877,1728058232782,-150.0,0.00037378,2]
[339844878,1728058232792,-150.0,0.00037378,2]
[339844879,1728058232801,-150.0,0.00037478,120]
[339844880,1728058232815,-5696.84923633,0.00037642,15]
[339844881,1728058232825,-27969.09594013,0.00037741,120]
[339844882,1728058232835,-22619.5146,0.00037742,2]
[339844883,1728058232893,-1000.0,0.00037756,2]
[339844884,1728058232903,-3984.39166804,0.00037756,10]
[339844885,1728058232912,-1000.0,0.000378,2]
[339844886,1728058232922,-800.0,0.000378,13]
[339844887,1728058232932,-500.0,0.00037808,120]
[339844888,1728058232941,-169.39395976,0.00037808,120]
[339844889,1728058232953,-330.60604024,0.00037808,120]
[339844890,1728058232964,-500.0,0.00037808,120]
[339844891,1728058232974,-500.0,0.00037808,120]
[339844892,1728058232984,-500.0,0.00037808,120]
[339844893,1728058232994,-500.0,0.00037808,120]
[339844894,1728058233003,-500.0,0.00037808,120]
[339844895,1728058233012,-500.0,0.00037808,120]
[339844896,1728058233021,-500.0,0.00037808,120]
[339844897,1728058233031,-500.0,0.00037808,120]
[339844898,1728058233040,-500.0,0.00037808,120]
[339844899,1728058233050,-500.0,0.00037808,120]
[339844900,1728058233059,-500.0,0.00037808,120]
[339844901,1728058233069,-500.0,0.00037808,120]
[339844902,1728058233078,-500.0,0.00037808,120]
[339844903,1728058233087,-500.0,0.00037808,120]
[339844904,1728058233096,-500.0,0.00037808,120]
[339844905,1728058233105,-500.0,0.00037808,120]
[339844906,1728058233115,-500.0,0.00037808,120]
[339844907,1728058233125,-500.0,0.00037808,120]
[339844908,1728058233134,-500.0,0.00037808,120]
[339844909,1728058233142,-500.0,0.00037808,120]
[339844910,1728058233152,-548.59416504,0.00037808,120]
[339844911,1728058233161,-73883.2314698,0.00037846,6]
[339844912,1728058233170,-159.453044,0.00037846,7]
[339844913,1728058233179,-159.453044,0.00037846,7]
[339844914,1728058233189,-151.0,0.00037846,7]
[339844915,1728058233198,-500.0,0.00037855,15]
[339844916,1728058233207,-500.0,0.00037855,15]
[339844917,1728058233218,-500.0,0.00037855,15]
[339844918,1728058233228,-209.4671847,0.00037855,15]
[339844919,1728058233238,-499.99999999,0.00037855,15]
[339844920,1728058233247,-660.97434277,0.00037855,7]
[339844921,1728058233257,-15226.6994,0.00037856,2]
[339844922,1728058233266,-245000.0,0.00037856,2]
[339844923,1728058233276,-159.453044,0.00037856,7]
[339844924,1728058233285,-159.453044,0.00037856,7]
[339844925,1728058233295,-151.0,0.00037856,7]
[339844926,1728058233304,-500.0,0.00037873,2]
[339844927,1728058233314,-14776.646294,0.0003789,6]
[339844928,1728058233323,-1600.0,0.000379,13]
[339844929,1728058233333,-1202.0218,0.00037956,2]
[339844930,1728058233342,-20619.6904,0.00037956,2]
[339844931,1728058233352,-472.0497,0.00037956,2]
[339844932,1728058233361,-2000.0,0.00038,120]
[339844933,1728058233371,-284.28,0.00038028,2]
[339844934,1728058233380,-193.43531538,0.00038036,2]
[339844935,1728058233390,-19177.99421415,0.00038046,6]
[339844936,1728058233406,-1460.46853907,0.00038046,6]
[339844937,1728058233418,-53244.76871658,0.00038046,6]
[339844938,1728058233428,-7486.67048533,0.00038046,6]
[339844939,1728058233440,-9107.54181697,0.00038046,6]
[339844940,1728058233450,-159.453044,0.00038046,7]
[339844941,1728058233462,-159.453044,0.00038046,7]
[339844942,1728058233471,-151.0,0.00038046,7]
[339844943,1728058233481,-384.18482971,0.00038054,15]
[339844944,1728058233491,-16594.2123023,0.00038054,6]
[339844945,1728058233500,-1924.6496,0.00038056,2]
[339844946,1728058233510,-6286.04282324,0.00038056,2]
[339844947,1728058233521,-1728.39618865,0.00038056,2]
[339844948,1728058233532,-1559.20212666,0.00038056,2]
[339844949,1728058233544,-588.36553849,0.00038056,2]
[339844950,1728058233555,-457.01764906,0.00038056,2]
[339844957,1728058237779,-154.01,0.00034782,3]
[339844958,1728058237788,-13147.33632884,0.00038056,2]
[339844959,1728058237799,-3445.79092289,0.00038056,2]
[339844960,1728058237810,-261.38,0.00038056,2]
[339844961,1728058237834,-8722.95028107,0.00038056,2]
[339844962,1728058237890,-1285.24018095,0.00038056,2]
[339844963,1728058237902,-2082.2186989,0.00038056,2]
[339844964,1728058237913,-3167.29915925,0.00038056,2]
[339844965,1728058237924,-90041.403502,0.00038056,2]
[339844966,1728058237933,-216.0839,0.00038056,2]
[339844967,1728058237941,-478.0408,0.00038056,2]
[339844968,1728058237950,-1723.6356,0.00038056,2]
[339844969,1728058237959,-151.0,0.00038056,7]
[339844970,1728058237973,-159.453044,0.00038056,7]
[339844971,1728058237982,-159.453044,0.00038056,7]
[339844972,1728058237991,-690.0699,0.00038064,2]
[339844973,1728058238000,-500.0,0.000381,120]
[339844974,1728058238011,-432.12327386,0.000381,120]
[339844975,1728058238020,-500.0,0.00038134,120]
[339844976,1728058238029,-14776.646294,0.00038146,6]
[339844977,1728058238038,-151.0,0.00038146,7]
[339844978,1728058238047,-275.265138,0.00038146,7]
[339844980,1728058238056,-275.265138,0.00038146,7]
[339844981,1728058238065,-150.01,0.00038155,2]
[339844982,1728058238074,-3343.36628017,0.00038155,2]
[339844983,1728058238083,-500.0,0.00038155,15]
[339844984,1728058238092,-500.0,0.00038155,15]
[339844985,1728058238101,-201.66176362,0.00038155,15]
[339844986,1728058238110,-1000.0,0.00038156,2]
[339844987,1728058238119,-1000.0,0.00038156,2]
[339844988,1728058238129,-1000.0,0.00038156,2]
[339844989,1728058238138,-1000.0,0.00038156,2]
[339844990,1728058238147,-1000.0,0.00038156,2]
[339844991,1728058238156,-1000.0,0.00038156,2]
[339844992,1728058238165,-1000.0,0.00038156,2]
[339844993,1728058238174,-1000.0,0.00038156,2]
[339844994,1728058238184,-1000.0,0.00038156,2]
[339844995,1728058238193,-1000.0,0.00038156,2]
[339844996,1728058238202,-636.28294515,0.00038156,2]
[339844997,1728058238211,-275.265138,0.00038156,7]
[339844998,1728058238224,-275.265138,0.00038156,7]
[339844999,1728058238233,-500.0,0.00038164,7]
[339845000,1728058238242,-5696.84923624,0.00038204,15]
[339845001,1728058238251,-267.98643702,0.0003822,120]
[339845002,1728058238260,-190.90068575,0.00038236,11]
[339845003,1728058238269,-271.33707296,0.00038246,11]
[339845004,1728058238278,-216.427,0.00038256,2]
[339845005,1728058238287,-7500.0,0.00038256,2]
[339845006,1728058238295,-192.03880389,0.00038256,2]
[339845007,1728058238304,-159.453044,0.00038256,7]
[339845008,1728058238313,-159.453044,0.00038256,7]
[339845009,1728058238322,-275.265138,0.00038325,7]
[339845010,1728058238332,-275.265138,0.00038325,7]
[339845011,1728058238341,-159.453044,0.00038325,7]
[339845012,1728058238350,-159.453044,0.00038325,7]
[339845013,1728058238359,-275.265138,0.00038336,7]
[339845014,1728058238369,-275.265138,0.00038336,7]
[339845015,1728058238378,-275.265138,0.00038336,7]
[339845016,1728058238387,-275.265138,0.00038336,7]
[339845017,1728058238396,-159.453044,0.00038336,7]
[339845018,1728058238405,-159.453044,0.00038336,7]
[339845019,1728058238414,-2000.0,0.00038345,2]
[339845020,1728058238423,-2000.0,0.00038345,2]
[339845021,1728058238433,-2000.0,0.00038345,2]
[339845022,1728058238441,-2000.0,0.00038345,2]
[339845023,1728058238450,-2000.0,0.00038345,2]
[339845024,1728058238459,-2000.0,0.00038345,2]
[339845025,1728058238472,-2000.0,0.00038345,2]
[339845026,1728058238481,-2000.0,0.00038345,2]
[339845027,1728058238490,-2000.0,0.00038345,2]
[339845029,1728058238499,-2000.0,0.00038345,2]
[339845031,1728058238507,-2000.0,0.00038345,2]
[339845033,1728058238517,-2000.0,0.00038345,2]
[339845035,1728058238526,-2000.0,0.00038345,2]
[339845037,1728058238534,-2000.0,0.00038345,2]
[339845039,1728058238543,-2000.0,0.00038345,2]
[339845041,1728058238552,-2000.0,0.00038345,2]
[339845043,1728058238561,-2000.0,0.00038345,2]
[339845045,1728058238570,-2000.0,0.00038345,2]
[339845047,1728058238579,-2000.0,0.00038345,2]
[339845048,1728058238588,-2000.0,0.00038345,2]
[339845050,1728058238597,-154.61581396,0.00038345,2]
[339845052,1728058238607,-147766.46294,0.00038346,6]
[339845055,1728058238618,-21364.48345117,0.00038346,6]
[339845058,1728058238649,-1012.32519145,0.00038346,6]
[339845182,1728058239834,-608.23215857,0.00038346,6]
[339845184,1728058239846,-1123.14867022,0.00038346,6]
[339845186,1728058239857,-361.6645,0.00038346,6]
[339845188,1728058239868,-857.40522702,0.00038346,6]
[339845191,1728058239889,-721.73693709,0.00038346,6]
[339845203,1728058239995,-82746.0647237,0.00038346,6]
[339845205,1728058240006,-40552.84986178,0.00038346,6]
[339845207,1728058240015,-275.265138,0.00038346,7]
[339845209,1728058240024,-275.265138,0.00038346,7]
[339845211,1728058240033,-275.265138,0.00038346,7]
[339845212,1728058240043,-275.265138,0.00038346,7]
[339845213,1728058240052,-159.453044,0.00038346,7]
[339845214,1728058240060,-159.453044,0.00038346,7]
[339845215,1728058240071,-500.0,0.00038356,120]
[339845216,1728058240080,-500.0,0.00038356,120]
[339845217,1728058240089,-500.0,0.00038356,120]
[339845218,1728058240099,-500.0,0.00038356,120]
[339845219,1728058240108,-500.0,0.00038356,120]
[339845220,1728058240118,-500.0,0.00038356,120]
[339845221,1728058240130,-500.0,0.00038356,120]
[339845222,1728058240139,-500.0,0.00038356,120]
[339845223,1728058240148,-500.0,0.00038356,120]
[339845224,1728058240158,-500.0,0.00038356,120]
[339845225,1728058240166,-464.95213073,0.00038356,120]
[339845226,1728058240176,-500.0,0.00038356,120]
[339845227,1728058240186,-500.0,0.00038356,120]
[339845228,1728058240195,-500.0,0.00038356,120]
[339845229,1728058240205,-500.0,0.00038356,120]
[339845231,1728058240214,-500.0,0.00038356,120]
[339845233,1728058240224,-500.0,0.00038356,120]
[339845235,1728058240234,-500.0,0.00038356,120]
[339845237,1728058240243,-500.0,0.00038356,120]
[339845239,1728058240253,-500.0,0.00038356,120]
[339845241,1728058240262,-500.0,0.00038356,120]
[339845243,1728058240271,-500.0,0.00038356,120]
[339845245,1728058240281,-500.0,0.00038356,120]
[339845247,1728058240290,-500.0,0.00038356,120]
[339845249,1728058240299,-500.0,0.00038356,120]
[339845251,1728058240309,-500.0,0.00038356,120]
[339845253,1728058240318,-273.81688851,0.00038356,120]
[339845254,1728058240328,-500.0,0.00038356,120]
[339845256,1728058240337,-500.0,0.00038356,120]
[339845258,1728058240347,-500.0,0.00038356,120]
[339845260,1728058240356,-475.67900372,0.00038356,120]
[339845262,1728058240366,-500.0,0.00038356,120]
[339845264,1728058240376,-500.0,0.00038356,120]
[339845266,1728058240386,-500.0,0.00038356,120]
[339845268,1728058240395,-500.0,0.00038356,120]
[339845270,1728058240405,-500.0,0.00038356,120]
[339845272,1728058240415,-500.0,0.00038356,120]
[339845274,1728058240424,-500.0,0.00038356,120]
[339845276,1728058240434,-500.0,0.00038356,120]
[339845278,1728058240443,-500.0,0.00038356,120]
[339845280,1728058240453,-500.0,0.00038356,120]
[339845282,1728058240462,-500.0,0.00038356,120]
[339845284,1728058240473,-500.0,0.00038356,120]
[339845286,1728058240482,-500.0,0.00038356,120]
[339845288,1728058240493,-500.0,0.00038356,120]
[339845290,1728058240502,-500.0,0.00038356,120]
[339845292,1728058240512,-500.0,0.00038356,120]
[339845294,1728058240521,-500.0,0.00038356,120]
[339845296,1728058240530,-500.0,0.00038356,120]
[339845298,1728058240540,-500.0,0.00038356,120]
[339845300,1728058240550,-500.0,0.00038356,120]
[339845302,1728058240559,-500.0,0.00038356,120]
[339845304,1728058240569,-445.19897696,0.00038356,120]
[339845306,1728058240579,-500.0,0.00038356,120]
[339845308,1728058240588,-531.57488624,0.00038356,120]
[339845310,1728058240597,-500.0,0.00038356,120]
[339845312,1728058240606,-500.0,0.00038356,120]
[339845314,1728058240616,-500.0,0.00038356,120]
[339845316,1728058240625,-500.0,0.00038356,120]
[339845318,1728058240635,-500.0,0.00038356,120]
[339845320,1728058240644,-500.0,0.00038356,120]
[339845321,1728058240653,-500.0,0.00038356,120]
[339845323,1728058240662,-500.0,0.00038356,120]
[339845325,1728058240672,-830.22,0.00038356,120]
[339845327,1728058240681,-500.0,0.00038356,120]
[339845329,1728058240691,-500.0,0.00038356,120]
[339845331,1728058240701,-500.0,0.00038356,120]
[339845333,1728058240710,-500.0,0.00038356,120]
[339845335,1728058240721,-500.0,0.00038356,120]
[339845337,1728058240730,-544.76889516,0.00038356,120]
[339845339,1728058240740,-500.0,0.00038356,120]
[339845341,1728058240750,-514.7,0.00038356,120]
[339845343,1728058240760,-500.0,0.00038356,120]
[339845345,1728058240769,-500.0,0.00038356,120]
[339845347,1728058240778,-500.0,0.00038356,120]
[339845349,1728058240787,-500.0,0.00038356,120]
[339845350,1728058240797,-500.0,0.00038356,120]
[339845352,1728058240806,-500.0,0.00038356,120]
[339845353,1728058240816,-696.76,0.00038356,120]
[339845354,1728058240828,-557.67,0.00038356,120]
[339845355,1728058240838,-500.0,0.00038356,120]
[339845356,1728058240847,-301.37411403,0.00038356,120]
[339845357,1728058240857,-500.0,0.00038356,120]
[339845358,1728058240868,-500.0,0.00038356,120]
[339845359,1728058240877,-500.0,0.00038356,120]
[339845360,1728058240887,-275.265138,0.00038356,7]
[339845361,1728058240896,-275.265138,0.00038356,7]
[339845362,1728058240907,-275.265138,0.00038356,7]
[339845363,1728058240917,-500.0,0.00038356,120]
[339845364,1728058240926,-500.0,0.00038356,120]
[339845365,1728058240936,-500.0,0.00038356,120]
[339845366,1728058240945,-275.265138,0.00038356,7]
[339845367,1728058240955,-275.265138,0.00038356,7]
[339845368,1728058240964,-500.0,0.00038356,120]
[339845369,1728058240976,-275.265132,0.00038356,7]
[339845370,1728058240985,-500.0,0.00038356,120]
[339845371,1728058240995,-500.0,0.00038356,120]
[339845372,1728058241004,-623.16,0.00038356,120]
[339845373,1728058241014,-548.19,0.00038356,120]
[339845374,1728058241023,-500.0,0.00038356,120]
[339845375,1728058241033,-919.0,0.00038356,120]
[339845376,1728058241043,-546.75191879,0.00038356,120]
[339845377,1728058241052,-500.0,0.00038356,120]
[339845378,1728058241062,-228.25004908,0.00038356,120]
[339845379,1728058241071,-500.0,0.00038356,120]
[339845380,1728058241081,-500.0,0.00038356,120]
[339845381,1728058241090,-500.0,0.00038356,120]
[339845382,1728058241099,-500.0,0.00038356,120]
[339845383,1728058241109,-500.0,0.00038356,120]
[339845385,1728058241118,-500.0,0.00038356,120]
[339845387,1728058241128,-500.0,0.00038356,120]
[339845390,1728058241137,-500.0,0.00038356,120]
[339845392,1728058241147,-501.77591668,0.00038356,120]
[339845394,1728058241156,-500.0,0.00038356,120]
[339845396,1728058241166,-500.0,0.00038356,120]
[339845398,1728058241176,-500.0,0.00038356,120]
[339845400,1728058241186,-500.0,0.00038356,120]
[339845402,1728058241196,-528.36,0.00038356,120]
[339845404,1728058241205,-500.0,0.00038356,120]
[339845406,1728058241215,-500.0,0.00038356,120]
[339845408,1728058241226,-500.0,0.00038356,120]
[339845410,1728058241235,-505.63,0.00038356,7]
[339845412,1728058241244,-500.0,0.00038356,120]
[339845414,1728058241254,-500.0,0.00038356,120]
[339845416,1728058241264,-500.0,0.00038356,120]
[339845418,1728058241274,-500.0,0.00038356,120]
[339845420,1728058241283,-500.0,0.00038356,120]
[339845422,1728058241293,-877.47,0.00038356,120]
[339845424,1728058241303,-500.0,0.00038356,120]
[339845426,1728058241313,-500.0,0.00038356,120]
[339845428,1728058241322,-1152.38,0.00038356,120]
[339845430,1728058241332,-500.0,0.00038356,120]
[339845432,1728058241342,-500.0,0.00038356,120]
[339845434,1728058241352,-500.0,0.00038356,120]
[339845436,1728058241362,-500.0,0.00038356,120]
[339845439,1728058241372,-500.0,0.00038356,120]
[339845441,1728058241383,-500.0,0.00038356,120]
[339845443,1728058241392,-500.0,0.00038356,120]
[339845445,1728058241402,-500.0,0.00038356,120]
[339845447,1728058241412,-500.0,0.00038356,120]
[339845449,1728058241422,-625.77,0.00038356,120]
[339845451,1728058241432,-500.0,0.00038356,120]
[339845453,1728058241442,-500.0,0.00038356,120]
[339845455,1728058241451,-500.0,0.00038356,120]
[339845457,1728058241461,-500.0,0.00038356,120]
[339845459,1728058241472,-500.0,0.00038356,120]
[339845461,1728058241481,-500.0,0.00038356,120]
[339845463,1728058241491,-500.0,0.00038356,120]
[339845465,1728058241501,-500.0,0.00038356,120]
[339845466,1728058241511,-500.0,0.00038356,120]
[339845468,1728058241520,-500.0,0.00038356,120]
[339845470,1728058241530,-184.73043314,0.00038356,120]
[339845472,1728058241539,-500.0,0.00038356,120]
[339845474,1728058241548,-500.0,0.00038356,120]
[339845476,1728058241558,-539.0375061,0.00038356,120]
[339845478,1728058241567,-500.0,0.00038356,120]
[339845480,1728058241577,-82.247408,0.00038356,120]
[339845516,1728058243089,-504.48,0.00038046,10]
[339845517,1728058243099,-709.662592,0.00038356,120]
[339845518,1728058243109,-477.18220068,0.00038356,120]
[339845519,1728058243122,-22.81779932,0.00038356,120]
[339845520,1728058243133,-500.0,0.00038356,120]
[339845521,1728058243143,-500.0,0.00038356,120]
[339845522,1728058243154,-500.0,0.00038356,120]
[339845523,1728058243164,-500.0,0.00038356,120]
[339845524,1728058243174,-500.0,0.00038356,120]
[339845525,1728058243183,-64.71220058,0.00038356,120]
[339845526,1728058243195,-445.53925702,0.00038356,120]
[339845527,1728058243205,-174.25074298,0.00038356,120]
[339845535,1728058246016,-299.77317378,0.00038356,120]
[339845536,1728058246070,-25.97608324,0.00038356,120]
[339845537,1728058246080,-500.0,0.00038356,120]
[339845538,1728058246090,-500.0,0.00038356,120]
[339845539,1728058246100,-184.95675261,0.00038356,120]
[339845540,1728058246178,-315.04324739,0.00038356,120]
[339845541,1728058246188,-512.14,0.00038356,120]
[339845542,1728058246197,-1994.31,0.00038356,120]
[339845543,1728058246207,-500.0,0.00038356,120]
[339845544,1728058246216,-396.88745261,0.00038356,120]
[339845608,1728059431918,-161.19,0.00010959,2]
[339845609,1728059431928,-163.12,0.00010959,2]
[339845611,1728059431937,-300.0,0.00027664,2]
[339845613,1728059431946,-4859.94255773,0.00027664,2]
[339845614,1728059431955,-5873.0,0.00027665,2]
[339845615,1728059431964,-247.291,0.00027665,2]
[339845616,1728059431973,-1148.0,0.00027665,2]
[339845617,1728059431982,-13505.0,0.00027665,2]
[339845618,1728059431991,-527.935,0.00027665,17]
[339845619,1728059432000,-161.636,0.00027665,17]
[339845620,1728059432010,-253.31,0.00027665,2]
[339845621,1728059432019,-499.99,0.00027665,2]
[339845622,1728059432028,-1220.03,0.00027665,20]
[339845623,1728059432037,-150.99,0.00027665,2]
[339845624,1728059432046,-41781.23,0.00027665,2]
[339845625,1728059432055,-3430.78,0.00027665,2]
[339845626,1728059432064,-999.99,0.00027665,2]
[339845627,1728059432074,-312.27,0.00032745,2]
[339845628,1728059432083,-5995.05,0.000344,2]
[339845629,1728059432092,-150.21,0.00034488,2]
[339845630,1728059432101,-9828.91,0.00034504,2]
[339845631,1728059432110,-250.0,0.00034541,2]
[339845632,1728059432122,-1500.0,0.00034595,2]
[339845633,1728059432131,-200.0,0.00034623,2]
[339845634,1728059432141,-8929.22,0.00034623,2]
[339845635,1728059432149,-1567.6,0.00034676,60]
[339845636,1728059432158,-166.66,0.00034685,2]
[339845637,1728059432167,-387.15,0.00034689,120]
[339845638,1728059432176,-227.08513367,0.00034767,7]
[339845639,1728059432185,-455.33,0.00034859,2]
[339845641,1728059432194,-2000.0,0.00034859,120]
[339845642,1728059432203,-312.27,0.00035009,2]
[339845644,1728059432213,-200.0,0.0003509,2]
[339845646,1728059432222,-2331.03,0.00035114,2]
[339845648,1728059432231,-1000.0,0.00035179,2]
[339845649,1728059432239,-202.74,0.00035204,10]
[339845651,1728059432249,-7567.60830696,0.00035214,2]
[339845652,1728059432260,-16332.39169304,0.00035214,2]
[339845653,1728059432269,-250.0,0.00035271,120]
[339845654,1728059432279,-2751.0,0.00035294,2]
[339845655,1728059432288,-164.31,0.00035299,120]
[339845656,1728059432297,-150.0,0.00035301,2]
[339845657,1728059432306,-181.46,0.00035329,2]
[339845658,1728059432315,-335.63,0.00035431,2]
[339845659,1728059432324,-1205.0,0.000359,4]
[339845660,1728059432333,-150.0,0.00036051,2]
[339845661,1728059432343,-163.12,0.00036164,2]
[339845662,1728059432352,-747.97,0.00036541,2]
[339845663,1728059432363,-421.98,0.00036541,2]
[339845664,1728059432384,-150.0,0.00036578,2]
[339845665,1728059432394,-4000.0,0.00036651,28]
[339845666,1728059432403,-189.44,0.0003677,120]
[339845667,1728059432413,-423.34,0.00036841,2]
[339845668,1728059432423,-423.34,0.00036841,2]
[339845669,1728059432432,-423.34,0.00037041,2]
[339845670,1728059432443,-754.45,0.00037041,2]
[339845671,1728059432452,-423.34,0.00037041,2]
[339845672,1728059432461,-754.45,0.00037041,2]
[339845673,1728059432470,-423.34,0.00037041,2]
[339845674,1728059432479,-754.45,0.00037041,2]
[339845675,1728059432488,-754.45,0.00037041,2]
[339845676,1728059432498,-423.34,0.00037041,2]
[339845677,1728059432507,-754.45,0.00037041,2]
[339845678,1728059432517,-423.34,0.00037041,2]
[339845679,1728059432526,-754.45,0.00037041,2]
[339845680,1728059432536,-754.45,0.00037041,2]
[339845681,1728059432545,-301.73,0.00037178,2]
[339845682,1728059432554,-361.47,0.00037178,2]
[339845683,1728059432564,-150.0,0.00037178,2]
[339845684,1728059432573,-544.79,0.00037178,2]
[339845685,1728059432582,-150.0,0.00037178,2]
[339845686,1728059432591,-150.0,0.00037178,2]
[339845687,1728059432600,-150.0,0.00037178,2]
[339845688,1728059432609,-428.77,0.00037178,2]
[339845689,1728059432627,-150.0,0.00037178,2]
[339845690,1728059432636,-150.0,0.00037178,2]
[339845691,1728059432645,-150.0,0.00037178,2]
[339845692,1728059432654,-150.0,0.00037178,2]
[339845693,1728059432663,-428.77,0.00037178,2]
[339845694,1728059432672,-150.0,0.00037178,2]
[339845695,1728059432682,-150.0,0.00037178,2]
[339845696,1728059432691,-428.77,0.00037178,2]
[339845697,1728059432700,-428.77,0.00037178,2]
[339845698,1728059432710,-150.0,0.00037178,2]
[339845699,1728059432719,-150.0,0.00037178,2]
[339845700,1728059432731,-150.0,0.00037178,2]
[339845701,1728059432740,-856.7,0.00037178,2]
[339845702,1728059432749,-150.0,0.00037178,2]
[339845703,1728059432757,-150.0,0.00037178,2]
[339845704,1728059432766,-4036.0,0.00037237,117]
[339845705,1728059432775,-312.27,0.00037273,2]
[339845706,1728059432784,-186.14,0.00037309,2]
[339845707,1728059432793,-186.14,0.00037371,2]
[339845708,1728059432802,-122.97621326,0.00037433,2]
[339845709,1728059432814,-63.16378674,0.00037433,2]
[339845710,1728059432823,-151.6,0.00037452,2]
[339845711,1728059432832,-186.14,0.00037495,2]
[339845712,1728059432841,-635.0048,0.00037546,2]
[339845713,1728059432850,-746.40542393,0.00037641,2]
[339845714,1728059432859,-6518.1877,0.00037641,2]
[339845715,1728059432870,-21177.16048317,0.00037642,2]